Date of Payment,Expense Type,Expense Area,Supplier,Transaction Number,Amount,Description,Supplier Post Code,Supplier Type
11/08/2023,R & D Economic Consultancy and Research,Corporate Services - Analysis Directorate,Kantar Public UK Ltd,522280,101200.75,,SW1P 3JA,VENDOR
18/08/2023,Local IT consultancy,"Corporate Services - Digital, Data & Technology",Digital Modus Ltd,523368,29551.12,,RG21 8EN,VENDOR
01/08/2023,R & D Research and Development Expenditure,"Science, Innovation and Growth - Science, Research and Innovation",Rand Europe Community Interest Company,524759,83123.3,,CB4 1YG,VENDOR
10/08/2023,Technical Advice / Services & Support,"Corporate Services - Digital, Data & Technology",Ernst and Young LLP,527801,37250,,SE1 2AF,VENDOR
11/08/2023,IT Software Licences and Software Maintenance,"Corporate Services - Digital, Data & Technology",Phoenix Software Ltd,528114,93924.79,,YO42 1NS,VENDOR
11/08/2023,IT Software Licences and Software Maintenance,"Corporate Services - Digital, Data & Technology",Phoenix Software Ltd,528746,59206.8,,YO42 1NS,VENDOR
10/08/2023,Outsourced Technical Support,"Corporate Services - Digital, Data & Technology",Six Degrees Technology Group Ltd,528966,25663.08,,E1W 1AZ,VENDOR
10/08/2023,Technical Advice / Services & Support,"Corporate Services - Digital, Data & Technology",Ernst and Young LLP,529606,37250,,SE1 2AF,VENDOR
01/08/2023,Capital Grants To Public Corporations (PCs),"Science, Innovation and Growth - International Research and Innovation Directorate",NPL MANAGEMENT LTD,529868,190903.32,,TW11 0LW,VENDOR
01/08/2023,Capital Grants To Public Corporations (PCs),"Science, Innovation and Growth - International Research and Innovation Directorate",NPL MANAGEMENT LTD,529941,190903.32,,TW11 0LW,VENDOR
01/08/2023,Grant-In-Aid to Arms Length Bodies,"Science, Innovation and Growth - Science, Research and Innovation",Advanced Research and Invention Agency (ARIA),530111,100000,,NW1 2DB,GRANT
01/08/2023,Grant-In-Aid to Arms Length Bodies,"Science, Innovation and Growth - Science, Research and Innovation",UKRI - Biotechnology and Biological Science Research Council,530115,25000000,,SN2 1FF,WGA ONLY
01/08/2023,Grant-In-Aid to Arms Length Bodies,"Science, Innovation and Growth - Science, Research and Innovation",UKRI - Engineering and Physical Sciences Research Council,530122,15000000,,SN2 1FF,VENDOR
01/08/2023,Grant-In-Aid to Arms Length Bodies,"Science, Innovation and Growth - Science, Research and Innovation",UKRI - Engineering and Physical Sciences Research Council,530128,370000000,,SN2 1FF,VENDOR
01/08/2023,Grant-In-Aid to Arms Length Bodies,"Science, Innovation and Growth - Science, Research and Innovation",UKRI - Medical Research Council,530129,42400000,,W1N 4AL,WGA ONLY
01/08/2023,Grant-In-Aid to Arms Length Bodies,"Science, Innovation and Growth - Science, Research and Innovation",UKRI - Natural Environment Research Council,530130,40000000,,SN2 1EU,WGA ONLY
01/08/2023,Grant-In-Aid to Arms Length Bodies,"Science, Innovation and Growth - Science, Research and Innovation",UKRI - Science and Technology Facilities Council,530131,35000000,,SN2 1FF,WGA ONLY
01/08/2023,Grant-In-Aid to Arms Length Bodies,"Science, Innovation and Growth - Science, Research and Innovation",UKRI-Innovate UK,530132,130000000,,SN2 1FL,WGA ONLY
01/08/2023,Current Grants To Central Government,"Science, Innovation and Growth - Science, Research and Innovation",UKRI - Biotechnology and Biological Science Research Council,530133,10000000,,SN2 1UH,WGA ONLY
03/08/2023,Outsourced Technical Support,"Corporate Services - Digital, Data & Technology",Visionist Ltd,530166,331373,,BH24 3FG,VENDOR
03/08/2023,Outsourced Technical Support,"Corporate Services - Digital, Data & Technology",Visionist Ltd,530168,276243,,BH24 3FG,VENDOR
03/08/2023,Outsourced Technical Support,"Corporate Services - Digital, Data & Technology",Visionist Ltd,530172,109436,,BH24 3FG,VENDOR
11/08/2023,IT Software Licences and Software Maintenance,"Corporate Services - Digital, Data & Technology",Phoenix Software Ltd,530241,87132.17,,YO42 1NS,VENDOR
01/08/2023,Hire of Interim Managers,Corporate Services - Finance Directorate,Alexander Mann Solutions Ltd,530430,37828.85,,EC2N 3AQ,VENDOR
11/08/2023,IT Software Licences and Software Maintenance,"Corporate Services - Digital, Data & Technology",Phoenix Software Ltd,530591,60573.6,,YO42 1NS,VENDOR
01/08/2023,R & D Economic Consultancy and Research,"Science, Innovation and Growth - International Research and Innovation Directorate",Itad Ltd,530682,45871.01,,BN3 1RE,VENDOR
01/08/2023,R & D Economic Consultancy and Research,"Science, Innovation and Growth - International Research and Innovation Directorate",Itad Ltd,530682,56700.99,,BN3 1RE,VENDOR
01/08/2023,Other IT Consultancy,"Corporate Services - Digital, Data & Technology",Triad Group Plc,530867,83043.9,,GU7 1XE,VENDOR
01/08/2023,RES - NPF - Agencies - General Fund,"Science, Innovation and Growth - Space",UK SPACE AGENCY,530879,9000000,,SN2 1SZ,WGA ONLY
02/08/2023,Other Admin Expenditure,Corporate Services - Finance Directorate,Thurrock Borough Council,530885,887397.48,,RM17 6LT,VENDOR
01/08/2023,Recruitment Advice and Services,"Corporate Services - Policy, Strategy and Private Office",GATENBYSANDERSON LTD,530906,40303,,LS1 2HL,VENDOR
02/08/2023,Clearing - Cost - Assets Under Construction - Internally Developed Software,Corporate Services - Implementation and Delivery Directorate,Storm ID Ltd,530937,243660,,EH65BG,VENDOR
03/08/2023,Other IT Consultancy,"Corporate Services - Digital, Data & Technology",Tecknuovo Ltd,530938,157617.5,,SE1 1JA,VENDOR
01/08/2023,CL - Payroll Suspense,Corporate Payments,LEGAL AND GENERAL ASSURANCE SOCIETY LTD,530959,106442.96,,CF24 0EB,VENDOR
01/08/2023,CL - Payroll Suspense,Corporate Payments,LEGAL AND GENERAL ASSURANCE SOCIETY LTD,530961,29953.68,,CF24 0EB,VENDOR
03/08/2023,Central Telecommunications Services,"Corporate Services - Digital, Data & Technology",TELEFONICA UK LTD,531176,45343.94,,SL1 4DX,VENDOR
03/08/2023,Purchase of Intangible Software,Corporate Services - Human Resources,The Information Lab Ltd,531177,29018.52,,WC1E 7EB,VENDOR
08/08/2023,Other IT Consultancy,"Corporate Services - Digital, Data & Technology",Triad Group Plc,531185,68458.8,,GU7 1XE,VENDOR
03/08/2023,IT Services,"Corporate Services - Digital, Data & Technology",Triad Group Plc,531188,44115,,GU7 1XE,VENDOR
11/08/2023,ICT Outsourcing & Maintenance/Support,Corporate Services - Analysis Directorate,ESRI (UK) LTD,531333,47616,,HP21 7QG,VENDOR
09/08/2023,Technical Advice / Services & Support,"Corporate Services - Digital, Data & Technology",Ernst and Young LLP,531351,38250,,SE1 2AF,VENDOR
04/08/2023,Catering Services,Corporate Services - Commercial & Operations,Aramark Ltd,531363,26377.94,,LS16 6QY,VENDOR
16/08/2023,ICT Infrastructure Specific Service,"Corporate Services - Digital, Data & Technology",Amazon Web Services EMEA SARL,531368,62401.76,,EC2A 2FA,VENDOR
07/08/2023,Legal Services and Advice Agency,Corporate Services - Legal Services,Government Legal Department,531702,44872.96,,SW1H 9JS,VENDOR
16/08/2023,UKSBS - Service Costs,"Corporate Services - Digital, Data & Technology",UK Shared Business Services Ltd,532370,763833.33,,SN2 1FF,VENDOR
09/08/2023,Consultancy Expenditure,Corporate Services - CS COO Office,Deloitte LLP,532425,367360,,EC4A 3HQ,VENDOR
15/08/2023,ICT Infrastructure Specific Service,"Corporate Services - Digital, Data & Technology",BSI Professional Services (Ireland) Ltd,532572,986436,,D18 CSK1,VENDOR
10/08/2023,Storage and Distribution,"Corporate Services - Digital, Data & Technology",RESTORE PLC,532576,29093.34,,RH1 5DY,VENDOR
10/08/2023,CA - Clarity Travel Management,"Corporate Services - Digital, Data & Technology",Corporate Travel Management (North) Ltd,532590,497771.06,,BD1 5HQ,VENDOR
10/08/2023,Other Professional Services,"Corporate Services - Digital, Data & Technology",Fujitsu Services Ltd,532749,40462.5,,WA3 9BD,VENDOR
11/08/2023,Technical Advice / Services & Support,"Corporate Services - Digital, Data & Technology",BJSS Ltd,532805,128778,,LS1 4HR,VENDOR
11/08/2023,IT Software Licences and Software Maintenance,"Corporate Services - Digital, Data & Technology",Brookcourt Solutions Ltd,532994,351504,,WC1N 3ES,VENDOR
11/08/2023,CA - GPC New Procedures,Corporate Services - Commercial & Operations,BARCLAYS BANK PLC,533021,116969.97,,TS17 6YT,VENDOR
11/08/2023,Stationery,Corporate Services - Commercial & Operations,BARCLAYS BANK PLC,533024,38269.59,,TS17 6YT,VENDOR
14/08/2023,Other IT Consultancy,"Corporate Services - Digital, Data & Technology",Tecknuovo Ltd,533197,83805,,SE1 1JA,VENDOR
14/08/2023,Consultancy Expenditure,Corporate Services - Commercial & Operations,4C Associates Ltd,533245,44700,,W6 7JP,VENDOR
16/08/2023,Fast stream - Full Cost,Corporate Services - Human Resources,Cabinet Office,533545,158069,,NP10 8FZ,WGA ONLY
16/08/2023,Fast stream - Full Cost,Corporate Services - Human Resources,Cabinet Office,533546,87732,,NP10 8FZ,WGA ONLY
16/08/2023,Fast stream - Full Cost,Corporate Services - Human Resources,Cabinet Office,533547,71849,,NP10 8FZ,WGA ONLY
16/08/2023,Fast stream - Full Cost,Corporate Services - Human Resources,Cabinet Office,533548,76415,,NP10 8FZ,WGA ONLY
16/08/2023,Fast stream - Full Cost,Corporate Services - Human Resources,Cabinet Office,533551,66348,,NP10 8FZ,WGA ONLY
16/08/2023,Fast stream - Full Cost,Corporate Services - Human Resources,Cabinet Office,533553,97669,,NP10 8FZ,WGA ONLY
16/08/2023,Fast stream - Full Cost,Corporate Services - Human Resources,Cabinet Office,533554,45872,,NP10 8FZ,WGA ONLY
16/08/2023,Fast stream - Full Cost,Corporate Services - Human Resources,Cabinet Office,533556,359849,,NP10 8FZ,WGA ONLY
17/08/2023,Outsourced Technical Support,"Corporate Services - Digital, Data & Technology",Visionist Ltd,533808,174251.54,,BH24 3FG,VENDOR
25/08/2023,IT Software Licences and Software Maintenance,"Corporate Services - Digital, Data & Technology",Phoenix Software Ltd,534001,83015.42,,YO42 1NS,VENDOR
24/08/2023,Capital Grants To Public Corporations (PCs),"Corporate Services - Digital, Data & Technology",UK Shared Business Services Ltd,534112,1464657.6,,SN2 1FF,VENDOR
18/08/2023,Minor Works,Corporate Services - Commercial & Operations,Government Property Agency,534128,31677.49,,B2 2QQ,VENDOR
23/08/2023,Outsourced Technical Support,"Corporate Services - Digital, Data & Technology",Six Degrees Technology Group Ltd,534148,25663.08,,E1W 1AZ,VENDOR
18/08/2023,CL - Recoveries Account - Other payables,Corporate Payments,Department for Science Innovation and Technology (DSIT),534173,369165.72,,SW1H 0ET,VENDOR
21/08/2023,HR Advice and Services,Corporate Services - Human Resources,Ministry Of Justice,534175,89848,,NP20 9BB,WGA ONLY
22/08/2023,Misc. Non Procurement Spend,"Corporate Services - Policy, Strategy and Private Office",Cabinet Office,534314,31214.35,,NP10 8FZ,WGA ONLY
22/08/2023,Application Support Service,"Corporate Services - Digital, Data & Technology",CGI IT UK LTD,534345,35208.5,,EC3M 3BY,VENDOR
25/08/2023,IT Software Licences and Software Maintenance,"Corporate Services - Digital, Data & Technology",Phoenix Software Ltd,534385,89268.91,,YO42 1NS,VENDOR
24/08/2023,Recruitment Advice and Services,Corporate Services - Human Resources,Cabinet Office,534557,53965.53,,NP10 8FZ,WGA ONLY
24/08/2023,Recruitment Advice and Services,Corporate Services - Human Resources,Cabinet Office,534557,79961.8,,NP10 8FZ,WGA ONLY
31/08/2023,Technical Advice / Services & Support,"Corporate Services - Digital, Data & Technology",Ernst and Young LLP,534562,38250,,SE1 2AF,VENDOR
31/08/2023,Clearing Account   - Cost - Computer Equipment,"Corporate Services - Digital, Data & Technology",DELL CORPORATION LTD,534571,45000,,RG12 1LF,VENDOR
23/08/2023,Technical Advice / Services & Support,"Corporate Services - Digital, Data & Technology",Broadlight Ltd,534577,34675,,BN5 9DP,VENDOR
23/08/2023,Other IT Consultancy,"Corporate Services - Digital, Data & Technology",CGI IT UK LTD,534578,48987.11,,EC3M 3BY,VENDOR
24/08/2023,Other IT Consultancy,"Corporate Services - Digital, Data & Technology",Tecknuovo Ltd,534848,65625,,SE1 1JA,VENDOR
31/08/2023,Clearing Account   - Cost - Computer Equipment,"Corporate Services - Digital, Data & Technology",DELL CORPORATION LTD,535045,45000,,RG12 1LF,VENDOR
29/08/2023,Clearing Account - Cost - Leasehold Improvements,Corporate Services - Commercial & Operations,Government Property Agency,535385,275565.54,,B2 2QQ,VENDOR
29/08/2023,Clearing Account - Cost - Leasehold Improvements,Corporate Services - Commercial & Operations,Government Property Agency,535386,214830.06,,B2 2QQ,VENDOR
04/08/2023,R & D Technical Advice/Services and Support,"Science, Innovation and Growth - International Research and Innovation Directorate",Met Office,531641,247500,Space Weather Service-R & D Technical Advice/Services and Support,EX1 3PB,WGA ONLY
08/08/2023,R & D Technical Advice/Services and Support,"Science, Innovation and Growth - International Research and Innovation Directorate",Met Office,531719,9375416.67,Public Weather Service: Contract-R & D Technical Advice/Services and Support,EX1 3PB,WGA ONLY
08/08/2023,R & D Research and Development Expenditure,"Science, Innovation and Growth - International Research and Innovation Directorate",Met Office,531720,3884506.37,Met Office - Supercomputer R&D-R & D Research and Development Expenditure,EX1 3PB,WGA ONLY
08/08/2023,R & D Technical Advice/Services and Support,"Science, Innovation and Growth - International Research and Innovation Directorate",Met Office,531722,1765750,Hadley Centre-R & D Technical Advice/Services and Support,EX1 3PB,WGA ONLY
10/08/2023,R & D Current Grants to Private Sector - NPISH,"Science, Innovation and Growth - International Research and Innovation Directorate",The Royal Society,532518,1129000,Royal Society-R & D Current Grants to Private Sector - NPISH,SW1Y 5AG,GRANT
10/08/2023,R & D Current Grants to Private Sector - NPISH,"Science, Innovation and Growth - International Research and Innovation Directorate",THE BRITISH ACADEMY,532519,61359,British Academy transitional measures and talent offer (EU)-R & D Current Grants to Private Sector - NPISH,SW1Y 5AH,VENDOR
10/08/2023,R & D Current Grants to Private Sector - NPISH,"Science, Innovation and Growth - International Research and Innovation Directorate",THE BRITISH ACADEMY,532519,2014136,British Academy-R & D Current Grants to Private Sector - NPISH,SW1Y 5AH,VENDOR
10/08/2023,R & D Current Grants to Private Sector - NPISH,"Science, Innovation and Growth - International Research and Innovation Directorate",ROYAL ACADEMY OF ENGINEERING RAE,532520,73579.77,Royal Academy of Engineering transitional measures and talent offer (EU)-R & D Current Grants to Private Sector - NPISH,SW1Y 5DG,VENDOR
10/08/2023,R & D Current Grants to Private Sector - NPISH,"Science, Innovation and Growth - International Research and Innovation Directorate",ROYAL ACADEMY OF ENGINEERING RAE,532520,3395955.71,Royal Academy Of Engineering-R & D Current Grants to Private Sector - NPISH,SW1Y 5DG,VENDOR
10/08/2023,R & D Current Grants to Private Sector - NPISH,"Science, Innovation and Growth - International Research and Innovation Directorate",ACADEMY OF MEDICAL SCIENCES,532522,96520,Academy of Medical Sciences transitional measures and talent offer (EU)-R & D Current Grants to Private Sector - NPISH,W1B 1QH,GRANT
10/08/2023,R & D Current Grants to Private Sector - NPISH,"Science, Innovation and Growth - International Research and Innovation Directorate",ACADEMY OF MEDICAL SCIENCES,532522,479565,Academy of Medical Sciences-R & D Current Grants to Private Sector - NPISH,W1B 1QH,GRANT
15/08/2023,NCA - Additions - Other Loans - Public Corporations,"Science, Innovation and Growth - International Research and Innovation Directorate",NPL MANAGEMENT LTD,533029,474233.61,NMS NPL Funding Activities-NCA - Additions - Other Loans - Public Corporations,TW11 0LW,VENDOR
11/08/2023,R&D Laboratory Services,"Science, Innovation and Growth - International Research and Innovation Directorate",TUV SUD LTD,533046,129163,NMS - Net Zero-R&D Laboratory Services,G75 0QF,VENDOR
11/08/2023,R&D Laboratory Services,"Science, Innovation and Growth - International Research and Innovation Directorate",LGC LTD,533047,737958,NMS Programme for Chemical & Biological Metrology at LGC-R&D Laboratory Services,TW11 0LY,GRANT
11/08/2023,R&D Laboratory Services,"Science, Innovation and Growth - International Research and Innovation Directorate",TUV SUD LTD,533050,486781,NMS Flow Programme at NEL-R&D Laboratory Services,G75 0QF,VENDOR
11/08/2023,R&D Laboratory Services,"Science, Innovation and Growth - International Research and Innovation Directorate",TUV SUD LTD,533052,43000,NMS Flow Programme at NEL-R&D Laboratory Services,G75 0QF,VENDOR
14/08/2023,R & D Interior Landscaping & Refurbishment,"Science, Innovation and Growth - International Research and Innovation Directorate",Government Communications Headquarters (GCHQ),533212,201834.63,NPL National Timing Centre-R & D Interior Landscaping & Refurbishment,GL51 0EX,VENDOR
17/08/2023,Capital Grants To Local Government,Digital and Technology Group - Digital Infrastructure,West Midlands Combined Authority,533227,33812.28,Future Networks R&D Capital Grants-Capital Grants To Local Government,B19 3SD,GRANT
15/08/2023,Clearing Account - Cost - Assets Under Construction - Freehold building,"Science, Innovation and Growth - International Research and Innovation Directorate",NPL MANAGEMENT LTD,533256,1815831.59,NMS - NPL Buildings and Infrastructre (sci-Ringfence)-Clearing Account - Cost - Assets Under Construction - Freehold building,TW11 0LW,VENDOR
15/08/2023,R & D Administration of Grants and Awards,"Science, Innovation and Growth - International Research and Innovation Directorate",Met Office,533487,216802.31,Newton Fund - Supplier - Met Office (programmes)-R & D Administration of Grants and Awards,EX1 3PB,WGA ONLY
15/08/2023,R&D Current Grants to Public Corporations,"Science, Innovation and Growth - International Research and Innovation Directorate",Met Office,533487,2349342.76,Newton Fund - Supplier - Met Office (programmes)-R&D Current Grants to Public Corporations,EX1 3PB,WGA ONLY
17/08/2023,R&D Laboratory Services,"Science, Innovation and Growth - International Research and Innovation Directorate",NPL MANAGEMENT LTD,533833,1576750,NMS - NPL Life Sciences and Health-R&D Laboratory Services,TW11 0LW,VENDOR
18/08/2023,R & D External Legal Advice and Services,"Science, Innovation and Growth - Government Office for Science",TLT LLP,533988,112207.87,Covid Inquiry-R & D External Legal Advice and Services,BS1 6TP,VENDOR
18/08/2023,R & D External Legal Advice and Services,"Science, Innovation and Growth - Government Office for Science",TLT LLP,533990,102719.16,Covid Inquiry-R & D External Legal Advice and Services,BS1 6TP,VENDOR
18/08/2023,R & D External Legal Advice and Services,"Science, Innovation and Growth - Government Office for Science",TLT LLP,533992,110741.46,Covid Inquiry-R & D External Legal Advice and Services,BS1 6TP,VENDOR
18/08/2023,Capital Grants to Private Sector - Companies,Digital and Technology Group - Digital Infrastructure,UNIVERSITY OF SHEFFIELD,534114,240769.66,Future Networks R&D Capital Grants-Capital Grants to Private Sector - Companies,S10 2UH,GRANT
24/08/2023,Hire of Interim Managers,Central - DCMS Transfers,Alexander Mann Solutions Ltd,534553,94626.68,Corporate Services Admin-Hire of Interim Managers,EC2N 3AQ,VENDOR
23/08/2023,Capital Grants To Local Government,Digital and Technology Group - Digital Infrastructure,London Borough of Ealing,534575,26012.22,Future Networks R&D Capital Grants-Capital Grants To Local Government,W5 2HL,GRANT
25/08/2023,R & D Current Grants to Private Sector - NPISH,"Science, Innovation and Growth - International Research and Innovation Directorate",FERA SCIENCE LTD,534879,252731.39,PSRE Infrastructure Fund - Other-R & D Current Grants to Private Sector - NPISH,DL1 9HN,VENDOR
25/08/2023,R & D Current Grants to Private Sector - NPISH,"Science, Innovation and Growth - International Research and Innovation Directorate",IMPERIAL COLLEGE LONDON,535074,90000,Tactical Fund-R & D Current Grants to Private Sector - NPISH,SW7 2AZ,WGA ONLY
31/08/2023,Hire of Interim Managers,Central - DCMS Transfers,Alexander Mann Solutions Ltd,535123,84540.34,Corporate Services Admin-Hire of Interim Managers,EC2N 3AQ,VENDOR
29/08/2023,Grant-In-Aid to Arms Length Bodies,"Science, Innovation and Growth - Science, Research and Innovation",UKRI - Engineering and Physical Sciences Research Council,535359,241743903.4,EPSRC Financing-Grant-In-Aid to Arms Length Bodies,SN2 1ET,VENDOR
29/08/2023,Capital Grants to Private Sector - Companies,Digital and Technology Group - Digital Infrastructure,KINGS COLLEGE LONDON,535392,66497.74,Future Networks R&D Capital Grants-Capital Grants to Private Sector - Companies,WC2R 2LS,VENDOR
30/08/2023,R&D Current Grants to Public Corporations,"Science, Innovation and Growth - International Research and Innovation Directorate",NPL MANAGEMENT LTD,535393,317791.95,NPL Strategic Priorities Fund Analysis for Innovators-R&D Current Grants to Public Corporations,TW11 0LW,VENDOR
30/08/2023,R&D Laboratory Services,"Science, Innovation and Growth - International Research and Innovation Directorate",NPL MANAGEMENT LTD,535394,364887.98,NPL - Quantum Test and Eval-R&D Laboratory Services,TW11 0LW,VENDOR
30/08/2023,R&D Current Grants to Public Corporations,"Science, Innovation and Growth - International Research and Innovation Directorate",NPL MANAGEMENT LTD,535395,404845.18,NPL National Timing Centre-R&D Current Grants to Public Corporations,TW11 0LW,VENDOR
31/08/2023,R&D Laboratory Services,"Science, Innovation and Growth - International Research and Innovation Directorate",NPL MANAGEMENT LTD,535409,166666.67,NMS - Net Zero-R&D Laboratory Services,TW11 0LW,VENDOR
30/08/2023,R&D Current Grants to Public Corporations,"Science, Innovation and Growth - International Research and Innovation Directorate",NPL MANAGEMENT LTD,535411,101361.04,NPL - FEC Pressure - NPIF-R&D Current Grants to Public Corporations,TW11 0LW,VENDOR
30/08/2023,R&D Laboratory Services,"Science, Innovation and Growth - International Research and Innovation Directorate",NPL MANAGEMENT LTD,535412,141106.32,NPL - Quantum Hub & Quantum Test-R&D Laboratory Services,TW11 0LW,VENDOR
30/08/2023,Financial Advice and Services,Digital and Technology Group - Digital Infrastructure,Centerview Partners UK LLP,535439,300000,Devolved Admin-Financial Advice and Services,SW1Y 5NQ,VENDOR
30/08/2023,R & D External Legal Advice and Services,"Science, Innovation and Growth - Government Office for Science",Government Legal Department,535579,27984.46,Covid Inquiry-R & D External Legal Advice and Services,SW1H 9JS,VENDOR
30/08/2023,Other Professional Services,Corporate Services - Matrix Directorate,Veran Performance Ltd,535584,1231358.4,Corporate Services Admin-Other Professional Services,KT8 9JU,VENDOR
30/08/2023,R & D External Legal Advice and Services,"Science, Innovation and Growth - Government Office for Science",Government Legal Department,535591,47234.84,Covid Inquiry-R & D External Legal Advice and Services,SW1H 9JS,VENDOR
30/08/2023,Current Grants To Private Sector - NPISH,Digital and Technology Group - Cyber Security and Digital Identity,The UK Cyber Security Council,535606,131230.09,Cyber Security Council-Current Grants To Private Sector - NPISH,EC3A 4AA,GRANT
